bitfinex/quotes_BTCUSD_20250719
["timestamp","ask_amount","ask_price","bid_price","bid_amount"]
[1752891182046,0.2309488,118090.0,118080.0,0.03980833]
[1752891182192,0.2309488,118090.0,118080.0,0.28922999]
[1752891182779,0.30249171,118090.0,118080.0,0.28922999]
[1752891184091,1.14879325,118090.0,118080.0,0.00249833]
[1752891184305,0.92758159,118090.0,118080.0,0.00249833]
[1752891184517,0.95301659,118090.0,118080.0,0.00249833]
[1752891185137,0.8793577,118090.0,118080.0,0.00249833]
[1752891185733,0.68486408,118090.0,118080.0,0.00249833]
[1752891185930,0.68189408,118090.0,118080.0,0.00249833]
[1752891186144,0.71646408,118090.0,118080.0,0.00249833]
[1752891186683,0.86401685,118090.0,118080.0,0.00249833]
[1752891187002,0.71646408,118090.0,118080.0,0.00249833]
[1752891187187,0.86401685,118090.0,118080.0,0.00249833]
[1752891190899,0.83241685,118090.0,118080.0,0.00249833]
[1752891191292,0.68486408,118090.0,118080.0,0.00249833]
[1752891191490,0.68189408,118090.0,118080.0,0.00249833]
[1752891191715,0.68189408,118090.0,118080.0,0.1713911]
[1752891191931,0.2543838,118090.0,118080.0,0.4095327]
[1752891192104,0.24591569,118090.0,118080.0,0.42288779]
[1752891192327,0.22894866,118090.0,118080.0,0.59584648]
[1752891192527,0.17894866,118090.0,118080.0,0.59584648]
[1752891192693,0.17894866,118090.0,118080.0,0.43135655]
[1752891195066,0.17894866,118090.0,118080.0,0.43982516]
[1752891195481,0.17894866,118090.0,118080.0,0.44829363]
[1752891196154,0.17894866,118090.0,118080.0,0.45676203]
[1752891196155,0.0265221,118090.0,118080.0,0.45676203]
[1752891196362,0.0265221,118090.0,118080.0,0.6043148]
[1752891196500,0.19588445,118090.0,118080.0,0.58737793]
[1752891196703,0.20435256,118090.0,118080.0,0.5958464]
[1752891197204,0.02652167,118090.0,118080.0,0.6043148]
[1752891197405,0.03498943,118090.0,118080.0,0.61278313]
[1752891197959,0.04345747,118090.0,118080.0,0.61278313]
[1752891198457,0.01805363,118090.0,118080.0,0.61278313]
[1752891198665,0.02652146,118090.0,118080.0,0.61278313]
[1752891199088,0.02652139,118090.0,118080.0,0.61278313]
[1752891199274,0.03498936,118090.0,118080.0,0.61278313]
[1752891199693,0.03498929,118090.0,118080.0,0.61278313]
[1752891199904,0.00958588,118090.0,118080.0,0.61278313]
[1752891200549,0.00111834,118090.0,118080.0,0.61278313]
[1752891200760,0.02652139,118090.0,118080.0,0.61278313]
[1752891201855,0.03498936,118090.0,118080.0,0.61278313]
[1752891203335,0.02652139,118090.0,118080.0,0.61278313]
[1752891203974,0.01805349,118090.0,118080.0,0.61278313]
[1752891204160,0.02652132,118090.0,118080.0,0.61278313]
[1752891204815,0.00111834,118090.0,118080.0,0.61278313]
[1752891205019,0.00958581,118090.0,118080.0,0.61278313]
[1752891205444,0.00111834,118090.0,118080.0,0.61278313]
[1752891208102,0.00958588,118090.0,118080.0,0.31767759]
[1752891208306,0.00958588,118090.0,118080.0,0.61278313]
[1752891208926,0.00111834,118090.0,118080.0,0.61278313]
[1752891209535,0.00111834,118090.0,118080.0,0.61178313]
[1752891209880,0.00111834,118090.0,118080.0,0.61278313]
[1752891210347,0.00111834,118090.0,118080.0,0.61178313]
[1752891210483,0.00111834,118090.0,118080.0,0.61078313]
[1752891210683,0.00111834,118090.0,118080.0,0.61278313]
[1752891210944,0.00111834,118090.0,118080.0,0.61678313]
[1752891212773,0.00111834,118090.0,118080.0,0.32167759]
[1752891212980,0.00111834,118090.0,118080.0,0.61678313]
[1752891219123,0.00111834,118090.0,118080.0,0.70229341]
[1752891219330,0.00111834,118090.0,118080.0,0.84984618]
[1752891223054,0.00111834,118090.0,118080.0,1.18984618]
[1752891223721,0.00111834,118090.0,118080.0,1.19838419]
[1752891223954,0.00111834,118090.0,118080.0,1.19638419]
[1752891224152,0.00111834,118090.0,118080.0,1.19238419]
[1752891224604,0.00211834,118090.0,118080.0,1.19738419]
[1752891225227,0.00211834,118090.0,118080.0,1.19938419]
[1752891233765,0.00211834,118090.0,118080.0,1.05175142]
[1752891233968,0.00211834,118090.0,118080.0,1.04321341]
[1752891234147,0.00421834,118090.0,118080.0,0.92177313]
[1752891234352,0.00211834,118090.0,118080.0,0.61564313]
[1752891239432,0.00211834,118090.0,118080.0,0.59994313]
[1752891240450,0.00211834,118090.0,118080.0,0.53450313]
[1752891240656,0.01971834,118090.0,118080.0,0.57976313]
[1752891240865,0.02818595,118090.0,118080.0,0.57976313]
[1752891241060,0.01971834,118090.0,118080.0,0.57976313]
[1752891241297,0.02818588,118090.0,118080.0,0.57976313]
[1752891241502,0.03665356,118090.0,118080.0,0.57976313]
[1752891241704,0.02818588,118090.0,118080.0,0.57976313]
[1752891241906,0.0636416,118090.0,118080.0,0.34136516]
[1752891242107,0.07210964,118090.0,118080.0,0.40680516]
[1752891242230,0.07210964,118090.0,118080.0,0.34136516]
[1752891242439,0.23300445,118090.0,118080.0,0.32442779]
[1752891242654,0.23300445,118090.0,118080.0,0.39833648]
[1752891242861,0.21606873,118090.0,118080.0,0.40680509]
[1752891243490,0.05517421,118090.0,118080.0,0.41527356]
[1752891243822,0.05517421,118090.0,118080.0,0.42374196]
[1752891244019,0.05517421,118090.0,118080.0,0.35830196]
[1752891244233,0.06364232,118090.0,118080.0,0.41527356]
[1752891244375,0.06364232,118090.0,118080.0,0.42374196]
[1752891244586,0.06364175,118090.0,118080.0,0.43221029]
[1752891245032,0.06364168,118090.0,118080.0,0.43221029]
[1752891245263,0.07210965,118090.0,118080.0,0.43221029]
[1752891245445,0.03130595,118090.0,118080.0,0.57976306]
[1752891245767,0.00421834,118090.0,118080.0,0.57976306]
[1752891246050,0.00421834,118090.0,118080.0,0.58502306]
[1752891246260,0.02115356,118090.0,118080.0,0.58502306]
[1752891246484,0.01268588,118090.0,118080.0,0.58502306]
[1752891246917,0.01268588,118090.0,118080.0,0.51958306]
[1752891247128,0.00421834,118090.0,118080.0,0.58502306]
[1752891247308,0.01268581,118090.0,118080.0,0.58502306]
[1752891248096,0.00421834,118090.0,118080.0,0.58502306]
[1752891248315,0.00211834,118090.0,118080.0,0.58502306]
[1752891248516,0.01058588,118090.0,118080.0,0.58502306]
[1752891249072,0.00211834,118090.0,118080.0,0.58502306]
[1752891249302,0.01058588,118090.0,118080.0,0.58502306]
[1752891250694,0.00211834,118090.0,118080.0,0.58502306]
[1752891251124,0.01058588,118090.0,118080.0,0.58502306]
[1752891251397,0.01058581,118090.0,118080.0,0.58502306]
[1752891252026,0.00211834,118090.0,118080.0,0.58502306]
[1752891252280,0.01058595,118090.0,118080.0,0.58502306]
[1752891252545,0.01058595,118090.0,118080.0,0.28991752]
[1752891252776,0.01058595,118090.0,118080.0,0.58502306]
[1752891253534,0.00211834,118090.0,118080.0,0.58502306]
[1752891253742,0.01058588,118090.0,118080.0,0.58502306]
[1752891253950,0.01905349,118090.0,118080.0,0.58502306]
[1752891255726,0.01058588,118090.0,118080.0,0.58502306]
[1752891256041,0.01905356,118090.0,118080.0,0.58502306]
[1752891256249,0.01058588,118090.0,118080.0,0.58502306]
[1752891258725,0.01905356,118090.0,118080.0,0.28991752]
[1752891258875,0.01905356,118090.0,118080.0,0.58502306]
[1752891259083,0.01058588,118090.0,118080.0,0.58502306]
[1752891259492,0.01905349,118090.0,118080.0,0.58502306]
[1752891260991,0.01058588,118090.0,118080.0,0.58502306]
[1752891263022,0.01058588,118090.0,118080.0,0.73231832]
[1752891264665,0.01905356,118090.0,118080.0,0.73231832]
[1752891266000,0.01905349,118090.0,118080.0,0.73231832]
[1752891267076,0.02752124,118090.0,118080.0,0.73231832]
[1752891267560,0.01905349,118090.0,118080.0,0.73231832]
[1752891268031,0.02752124,118090.0,118080.0,0.73231832]
[1752891268692,0.01905349,118090.0,118080.0,0.73231832]
[1752891270047,0.035989,118090.0,118080.0,0.28991752]
[1752891270258,0.035989,118090.0,118080.0,0.73231832]
[1752891272177,0.035989,118090.0,118080.0,0.28991752]
[1752891272388,0.0444569,118090.0,118080.0,0.73231832]
[1752891272600,0.0464169,118090.0,118080.0,0.73231832]
[1752891273247,0.037949,118090.0,118080.0,0.73231832]
[1752891274387,0.0464169,118090.0,118080.0,0.73231832]
[1752891275007,0.037949,118090.0,118080.0,0.73231832]
[1752891276737,0.0464169,118090.0,118080.0,0.73231832]
[1752891278711,0.037949,118090.0,118080.0,0.73231832]
[1752891279105,0.02948117,118090.0,118080.0,0.73231832]
[1752891279331,0.037949,118090.0,118080.0,0.73231832]
[1752891280061,0.02948117,118090.0,118080.0,0.73231832]
[1752891280270,0.02948117,118090.0,118080.0,0.66687832]
[1752891280476,0.02752117,118090.0,118080.0,0.73227832]
[1752891280880,0.035989,118090.0,118080.0,0.73227832]
[1752891281432,0.04445697,118090.0,118080.0,0.73227832]
[1752891282144,0.04445747,118090.0,118080.0,0.71534159]
[1752891282349,0.04445747,118090.0,118080.0,0.72380992]
[1752891282759,0.04641747,118090.0,118080.0,0.72380992]
[1752891283357,0.03794943,118090.0,118080.0,0.72380992]
[1752891287141,0.02948146,118090.0,118080.0,0.72380992]
[1752891287348,0.01905363,118090.0,118080.0,0.72380992]
[1752891288558,0.00211834,118090.0,118080.0,0.72380992]
[1752891288786,0.01058595,118090.0,118080.0,0.75540992]
[1752891289447,0.00211834,118090.0,118080.0,0.97661032]
[1752891292605,0.00211834,118090.0,118080.0,1.0621206]
[1752891292833,0.00211834,118090.0,118080.0,1.4021206]
[1752891293059,0.00211834,118090.0,118080.0,2.08026265]
[1752891294389,0.00211834,118090.0,118080.0,1.41666145]
[1752891294614,0.00211834,118090.0,118080.0,1.41466145]
[1752891295072,0.00111834,118090.0,118080.0,1.42014237]
[1752891295279,0.00111834,118090.0,118080.0,1.42514237]
[1752891296354,0.00111834,118090.0,118080.0,2.08874357]
[1752891300402,0.00111834,118090.0,118080.0,0.76154117]
[1752891300617,0.00111834,118090.0,118080.0,1.42514237]
[1752891301035,0.00111834,118090.0,118080.0,1.35974237]
[1752891301242,0.00111834,118090.0,118080.0,1.42510237]
[1752891301848,0.00111834,118090.0,118080.0,1.3367206]
[1752891302075,0.00111834,118090.0,118080.0,1.1492802]
[1752891302291,0.00326834,118090.0,118080.0,1.1492802]
[1752891302747,0.00326834,118090.0,118080.0,1.0839202]
[1752891302965,0.00111834,118090.0,118080.0,1.1492802]
[1752891303238,0.00326834,118090.0,118080.0,0.50566792]
[1752891303506,0.00326834,118090.0,118080.0,0.57102792]
[1752891303739,0.01195886,118090.0,118080.0,0.57102792]
[1752891303956,0.01195886,118090.0,118080.0,0.57317792]
[1752891304199,0.00326834,118090.0,118080.0,0.57636792]
[1752891304408,0.00111834,118090.0,118080.0,0.57636792]
[1752891304626,0.00111834,118090.0,118080.0,0.59236792]
[1752891304829,0.00111834,118090.0,118080.0,0.75542732]
[1752891305281,0.00111834,118090.0,118080.0,0.8409376]
[1752891312085,0.00111834,118090.0,118080.0,0.6934782]
[1752891312513,0.00111834,118090.0,118080.0,0.8409376]
[1752891313173,0.00111834,118090.0,118080.0,0.3985594]
[1752891313375,0.00111834,118090.0,118080.0,0.8409376]
[1752891313581,0.00111834,118090.0,118080.0,0.83808313]
[1752891315096,0.00111834,118090.0,118080.0,0.69062373]
[1752891319437,0.00111834,118090.0,118080.0,0.83808313]
[1752891320313,0.00111834,118090.0,118080.0,0.69062373]
[1752891322959,0.00111834,118090.0,118080.0,1.05917122]
[1752891340873,0.00111834,118090.0,118080.0,1.04357122]
[1752891341289,0.00111834,118090.0,118080.0,0.29874493]
[1752891341497,0.00307834,118090.0,118080.0,0.36406493]
[1752891341742,0.00307834,118090.0,118080.0,0.80637579]
[1752891342088,0.00307834,118090.0,118080.0,0.74105579]
[1752891342311,0.05417342,118090.0,118080.0,0.65020551]
[1752891342537,0.05417342,118090.0,118080.0,0.20789465]
[1752891342786,0.04570581,118090.0,118080.0,0.71552551]
[1752891343032,0.04570581,118090.0,118080.0,0.65020551]
[1752891343249,0.04570581,118090.0,118080.0,0.71552551]
[1752891343493,0.03723834,118090.0,118080.0,0.65020551]
[1752891343708,0.03723834,118090.0,118080.0,0.71552551]
[1752891344403,0.04570588,118090.0,118080.0,0.71552551]
[1752891345596,0.05417356,118090.0,118080.0,0.71552551]
[1752891346018,0.04570588,118090.0,118080.0,0.71552551]
[1752891346464,0.05417349,118090.0,118080.0,0.71552551]
[1752891347214,0.06264124,118090.0,118080.0,0.71552551]
[1752891348156,0.06264124,118090.0,118080.0,0.71052551]
[1752891348371,0.05417349,118090.0,118080.0,0.71152551]
[1752891348833,0.05417349,118090.0,118080.0,0.70952551]
[1752891349192,0.06264124,118090.0,118080.0,0.71052551]
[1752891350809,0.06264124,118090.0,118080.0,0.64520551]
[1752891351017,0.05417349,118090.0,118080.0,0.71052551]
[1752891351756,0.06264124,118090.0,118080.0,0.71052551]
[1752891351976,0.07110907,118090.0,118080.0,0.71052551]
[1752891352428,0.06264124,118090.0,118080.0,0.71052551]
[1752891352896,0.25605004,118090.0,118080.0,0.16902055]
[1752891353126,0.22353684,118090.0,118080.0,0.22315543]
[1752891353368,0.22353684,118090.0,118080.0,0.28847543]
[1752891353786,0.24896584,118090.0,118080.0,0.28847543]
[1752891353987,0.24896584,118090.0,118080.0,0.06732]
[1752891354224,0.31291284,118090.0,118080.0,0.06732]
[1752891354428,0.31291284,118090.0,118080.0,0.28847543]
[1752891354639,0.31291284,118090.0,118080.0,0.22315543]
[1752891354849,0.31291284,118090.0,118080.0,0.06732]
[1752891355471,0.31291284,118090.0,118080.0,0.06632]
[1752891357542,0.31291284,118090.0,118080.0,0.28747543]
[1752891358281,0.31291284,118090.0,118080.0,0.06628]
[1752891358683,0.31291284,118090.0,118080.0,0.28743543]
[1752891359081,0.31291284,118090.0,118080.0,0.46428088]
[1752891359296,0.31291284,118090.0,118080.0,0.46428095]
[1752891359766,0.29797669,118090.0,118080.0,0.45581212]
[1752891360125,0.23402969,118090.0,118080.0,0.45581212]
[1752891360744,0.07313531,118090.0,118080.0,0.70237368]
[1752891360942,0.25096541,118090.0,118080.0,0.69390514]
[1752891361144,0.25096541,118090.0,118080.0,0.70237375]
[1752891361352,0.25096541,118090.0,118080.0,0.71084229]
[1752891361722,0.25096541,118090.0,118080.0,0.06528]
[1752891361723,0.28452907,118090.0,118080.0,0.06528]
[1752891361931,0.28452907,118090.0,118080.0,0.28643543]
[1752891363533,0.28452907,118090.0,118080.0,0.50759086]
[1752891363748,0.28452907,118090.0,118080.0,0.67696755]
[1752891363954,0.24249766,118090.0,118080.0,0.46428095]
[1752891364733,0.24249766,118090.0,118080.0,0.67696755]
[1752891365028,0.24249766,118090.0,118080.0,0.68543638]
[1752891365243,0.24249766,118090.0,118080.0,0.46428095]
[1752891365451,0.24249766,118090.0,118080.0,0.45581212]
[1752891365668,0.23402969,118090.0,118080.0,0.45581212]
[1752891366097,0.24891904,118090.0,118080.0,0.06528]
[1752891366325,0.24891904,118090.0,118080.0,0.28643543]
[1752891368023,0.24891904,118090.0,118080.0,0.06528]
[1752891368297,0.24891904,118090.0,118080.0,0.28643543]
[1752891370738,0.24891904,118090.0,118080.0,0.06528]
[1752891370952,0.24891904,118090.0,118080.0,0.28643543]
[1752891371256,0.24891904,118090.0,118080.0,0.06528]
[1752891371477,0.24891904,118090.0,118080.0,0.28643543]
[1752891372106,0.24891904,118090.0,118080.0,0.06528]
[1752891372338,0.24891904,118090.0,118080.0,0.28643543]
[1752891374674,0.23402969,118090.0,118080.0,0.29490426]
[1752891374919,0.23402969,118090.0,118080.0,0.28643543]
[1752891375135,0.23402969,118090.0,118080.0,0.24312538]
[1752891375360,0.23402969,118090.0,118080.0,0.68543631]
[1752891375580,0.23402969,118090.0,118080.0,0.67696755]
[1752891375841,0.23402969,118090.0,118080.0,0.23465669]
[1752891376067,0.23402969,118090.0,118080.0,0.50759086]
[1752891377641,0.23402969,118090.0,118080.0,0.28643543]
[1752891377868,0.27436753,118090.0,118080.0,0.28643543]
[1752891379677,0.27436753,118090.0,118080.0,0.29490426]
[1752891380127,0.27436753,118090.0,118080.0,0.28643543]
[1752891380781,0.27436753,118090.0,118080.0,0.29490426]
[1752891380982,0.27436753,118090.0,118080.0,0.28643543]
[1752891381967,0.27436753,118090.0,118080.0,0.06528]
[1752891382201,0.27436753,118090.0,118080.0,0.28643543]
[1752891382436,0.27436753,118090.0,118080.0,0.06528]
[1752891382675,0.27436753,118090.0,118080.0,0.28643543]
[1752891383733,0.17786058,118070.0,118060.0,0.22115543]
[1752891383987,0.02541036,118060.0,118050.0,0.22941184]
[1752891384205,0.19481574,118060.0,118050.0,0.28847071]
[1752891384427,0.19481574,118060.0,118050.0,0.19911995]
[1752891384655,0.17991564,118060.0,118050.0,0.06752942]
[1752891384878,0.17144538,118060.0,118050.0,0.06752942]
[1752891385098,0.21115539,118060.0,118050.0,0.28868485]
[1752891385764,0.21115539,118060.0,118050.0,0.47504633]
[1752891385993,0.21115539,118060.0,118050.0,0.07073942]
[1752891385994,0.17144538,118060.0,118050.0,0.07073942]
[1752891386212,0.17144538,118060.0,118050.0,0.29189485]
[1752891386647,0.17144538,118060.0,118050.0,0.29068485]
[1752891386864,0.20334538,118060.0,118050.0,0.28858485]
[1752891387088,0.21281539,118060.0,118050.0,0.21300083]
[1752891387303,0.21281539,118060.0,118050.0,0.14772083]
[1752891387510,0.21281539,118060.0,118050.0,0.21400083]
[1752891388845,0.17144538,118060.0,118050.0,0.22247181]
[1752891389282,0.17144538,118060.0,118050.0,0.00114942]
[1752891389500,0.20653538,118060.0,118050.0,0.06642942]
[1752891390147,0.20653538,118060.0,118050.0,0.06646942]
[1752891390355,0.26520945,118060.0,118050.0,0.06646942]
[1752891393497,0.23330945,118060.0,118050.0,0.06646942]
[1752891394278,0.24980945,118060.0,118050.0,0.06646942]
[1752891394855,0.24980945,118060.0,118050.0,0.21404083]
[1752891395308,0.35151973,118060.0,118050.0,0.00114942]
[1752891395531,0.35151973,118060.0,118050.0,0.06646942]
[1752891396212,0.29284566,118060.0,118050.0,0.06646942]
[1752891396404,0.29284566,118060.0,118050.0,0.21404083]
[1752891396652,0.29284566,118060.0,118050.0,0.21304083]
[1752891397531,0.29284566,118060.0,118050.0,0.06646942]
[1752891398677,0.29284566,118060.0,118050.0,0.06546942]
[1752891398858,0.35442896,118060.0,118050.0,0.06546942]
[1752891399802,0.35542896,118060.0,118050.0,0.06546942]
[1752891406351,0.32272896,118060.0,118050.0,0.06546942]
[1752891406769,0.33772896,118060.0,118050.0,0.06546942]
[1752891408409,0.32272896,118060.0,118050.0,0.06546942]
[1752891408972,0.02640971,118060.0,118050.0,0.73883003]
[1752891409237,0.0264095,118060.0,118050.0,0.73883003]
[1752891409402,0.19581545,118060.0,118050.0,0.50057939]
[1752891409610,0.19581545,118060.0,118050.0,0.50905023]
[1752891410021,0.19581545,118060.0,118050.0,0.517521]
[1752891410192,0.19581545,118060.0,118050.0,0.52599169]
[1752891410400,0.18734562,118060.0,118050.0,0.50905023]
[1752891410634,0.18734562,118060.0,118050.0,0.50057939]
[1752891410835,0.17887557,118060.0,118050.0,0.49210848]
[1752891411042,0.17040538,118060.0,118050.0,0.24894537]
[1752891411196,0.17040538,118060.0,118050.0,0.18362537]
[1752891411400,0.17040538,118060.0,118050.0,0.24906537]
[1752891412054,0.20438502,118060.0,118050.0,0.4184851]
[1752891412488,0.20438502,118060.0,118050.0,0.24906537]
[1752891413139,0.17040538,118060.0,118050.0,0.24906537]
[1752891414056,0.17040538,118060.0,118050.0,0.43542692]
[1752891414302,0.17040538,118060.0,118050.0,0.44389769]
[1752891414952,0.17040538,118060.0,118050.0,0.43542692]
[1752891415178,0.17040538,118060.0,118050.0,0.44389783]
[1752891416145,0.17040538,118060.0,118050.0,0.4523686]
[1752891416660,0.17040538,118060.0,118050.0,0.46083929]
[1752891416837,0.17040538,118060.0,118050.0,0.4523286]
[1752891417077,0.17040538,118060.0,118050.0,0.46079929]
[1752891417292,0.001,118060.0,118050.0,0.44385762]
[1752891417490,0.02640965,118060.0,118050.0,0.46079879]
[1752891417700,0.0179396,118060.0,118050.0,0.46079879]
[1752891418062,0.001,118060.0,118050.0,0.60836474]
[1752891419320,0.00946969,118060.0,118050.0,0.60836474]
[1752891419549,0.00846962,118060.0,118050.0,0.60836474]
[1752891419744,0.00846962,118060.0,118050.0,0.60936474]
[1752891419951,0.03387676,118070.0,118060.0,0.22611552]
[1752891419952,0.04234631,118070.0,118060.0,0.22611552]
[1752891420159,0.02540728,118070.0,118060.0,0.53482718]
[1752891420364,0.02540728,118070.0,118060.0,0.52635742]
[1752891420580,0.04234616,118070.0,118060.0,0.52635742]
[1752891421785,0.21173719,118070.0,118060.0,0.22275569]
[1752891422034,0.24137984,118070.0,118060.0,0.52635757]
[1752891422292,0.20326829,118070.0,118060.0,0.53482748]
[1752891422957,0.02540771,118070.0,118060.0,0.53482748]
[1752891423214,0.03487719,118070.0,118060.0,0.54329731]
[1752891423431,0.04334674,118070.0,118060.0,0.53482705]
[1752891424247,0.02640771,118070.0,118060.0,0.53482705]
[1752891424463,0.01793838,118070.0,118060.0,0.54329681]
[1752891424674,0.02640778,118070.0,118060.0,0.52635722]
[1752891425269,0.03487733,118070.0,118060.0,0.52635722]
[1752891426398,0.02640821,118070.0,118060.0,0.51788731]
[1752891426609,0.02640821,118070.0,118060.0,0.52635722]
[1752891427259,0.0179383,118070.0,118060.0,0.54329681]
[1752891427464,0.001,118070.0,118060.0,0.54329681]
[1752891428550,0.0094689,118070.0,118060.0,0.54329681]
[1752891428768,0.001,118070.0,118060.0,0.54329681]
[1752891429373,0.04234258,118080.0,118070.0,0.22679903]
[1752891429609,0.04234315,118080.0,118070.0,0.44186498]
[1752891429816,0.04234315,118080.0,118070.0,0.28879991]
[1752891430017,0.03387475,118080.0,118070.0,0.44483512]
[1752891430140,0.03387475,118080.0,118070.0,0.45330431]
[1752891430347,0.03387475,118080.0,118070.0,0.44483512]
[1752891430544,0.02540592,118080.0,118070.0,0.45330431]
[1752891430765,0.02640592,118080.0,118070.0,0.45330431]
[1752891431223,0.02640592,118080.0,118070.0,0.46177343]
[1752891431563,0.03487475,118080.0,118070.0,0.45330431]
[1752891431742,0.03487475,118080.0,118070.0,0.44483512]
[1752891432044,0.03487475,118080.0,118070.0,0.45330431]
[1752891432299,0.03487475,118080.0,118070.0,0.46177343]
[1752891432501,0.03487475,118080.0,118070.0,0.45330431]
[1752891433134,0.02640592,118080.0,118070.0,0.45330431]
[1752891433531,0.03487475,118080.0,118070.0,0.45330431]
[1752891433764,0.03487475,118080.0,118070.0,0.44483512]
[1752891433980,0.19578297,118080.0,118070.0,0.43636586]
[1752891434188,0.19578297,118080.0,118070.0,0.44483512]
[1752891434574,0.02640628,118080.0,118070.0,0.44483512]
[1752891434838,0.01793716,118080.0,118070.0,0.46177328]
[1752891435051,0.02640542,118080.0,118070.0,0.46177328]
[1752891435263,0.01793673,118080.0,118070.0,0.46177328]
[1752891435478,0.02640542,118080.0,118070.0,0.46177328]
[1752891435931,0.03487403,118080.0,118070.0,0.45330424]
[1752891436146,0.02640527,118080.0,118070.0,0.46177328]
[1752891436562,0.03487388,118080.0,118070.0,0.46177328]
[1752891437265,0.02640527,118080.0,118070.0,0.46177328]
[1752891438624,0.03487396,118080.0,118070.0,0.46177328]
[1752891438838,0.02640527,118080.0,118070.0,0.46177328]
[1752891439072,0.00946826,118080.0,118070.0,0.46177328]
[1752891439289,0.01793666,118080.0,118070.0,0.46177328]
[1752891440614,0.02640527,118080.0,118070.0,0.46177328]
[1752891440826,0.03487403,118080.0,118070.0,0.45330424]
[1752891441053,0.03487403,118080.0,118070.0,0.52699272]
[1752891441473,0.02640527,118080.0,118070.0,0.52699272]
[1752891441673,0.02640527,118080.0,118070.0,0.53546176]
[1752891442090,0.03487396,118080.0,118070.0,0.53546176]
[1752891442485,0.02640527,118080.0,118070.0,0.53546176]
[1752891442687,0.03487396,118080.0,118070.0,0.52699272]
[1752891443118,0.01793666,118080.0,118070.0,0.53546176]
[1752891447232,0.02640513,118080.0,118070.0,0.53546176]
[1752891447478,0.01793666,118080.0,118070.0,0.53546176]
[1752891447679,0.02640527,118080.0,118070.0,0.53546176]
[1752891448566,0.02640527,118080.0,118070.0,0.52699272]
[1752891448775,0.02640527,118080.0,118070.0,0.53546176]
[1752891449237,0.03487396,118080.0,118070.0,0.53546176]
[1752891449525,0.03487396,118080.0,118070.0,0.52699272]
[1752891450210,0.02640527,118080.0,118070.0,0.53546176]
[1752891450616,0.03487403,118080.0,118070.0,0.52699279]
[1752891451330,0.0264052,118080.0,118070.0,0.5354614]
[1752891451574,0.01793666,118080.0,118070.0,0.5354614]
[1752891452204,0.0348741,118080.0,118070.0,0.50292324]
[1752891452424,0.03487403,118080.0,118070.0,0.50292317]
[1752891453061,0.02640527,118080.0,118070.0,0.51139221]
[1752891453281,0.01793666,118080.0,118070.0,0.51139221]
[1752891453497,0.00946826,118080.0,118070.0,0.52709221]
[1752891453737,0.01793666,118080.0,118070.0,0.52709221]
[1752891454187,0.03487382,118080.0,118070.0,0.51862317]
[1752891454823,0.03487374,118080.0,118070.0,0.52709221]
[1752891455092,0.001,118080.0,118070.0,0.74834664]
[1752891464583,0.001,118080.0,118070.0,0.83385692]
[1752891464802,0.001,118080.0,118070.0,1.05511135]
[1752891465019,0.001,118080.0,118070.0,1.39511135]
[1752891465688,0.00111834,118090.0,118080.0,0.22638232]
[1752891465913,0.00111834,118090.0,118080.0,1.04305589]
[1752891466123,0.00111834,118090.0,118080.0,1.04614589]
[1752891466988,0.00111834,118090.0,118080.0,1.04714589]
[1752891468313,0.00111834,118090.0,118080.0,1.04814589]
[1752891479924,0.00111834,118090.0,118080.0,0.82689146]
[1752891480818,0.00111834,118090.0,118080.0,0.3843826]
[1752891481045,0.04299588,118090.0,118080.0,0.40109981]
[1752891481260,0.24069163,118090.0,118080.0,0.002]
[1752891481474,0.44501084,118090.0,118080.0,0.002]
[1752891481730,0.44501084,118090.0,118080.0,0.06728]
[1752891482184,0.24918641,118090.0,118080.0,0.24512552]
[1752891482389,0.24918641,118090.0,118080.0,0.23665669]
[1752891482600,0.07982363,118090.0,118080.0,0.25359421]
[1752891482812,0.07689363,118090.0,118080.0,0.49178551]
[1752891483028,0.07689363,118090.0,118080.0,0.41802631]
[1752891483242,0.0938295,118090.0,118080.0,0.41802645]
[1752891483459,0.07689363,118090.0,118080.0,0.41802645]
[1752891483675,0.00312834,118090.0,118080.0,0.57899001]
[1752891483887,0.00111834,118090.0,118080.0,0.57899001]
[1752891484102,0.00958588,118090.0,118080.0,0.57899001]
[1752891484733,0.01805363,118090.0,118080.0,0.57899001]
[1752891485942,0.00111834,118090.0,118080.0,0.59399001]
[1752891486807,0.00111834,118090.0,118080.0,0.60929001]
[1752891487668,0.01805356,118090.0,118080.0,0.59399001]
[1752891487879,0.0265211,118090.0,118080.0,0.59399001]
[1752891488079,0.02652103,118090.0,118080.0,0.59399001]
[1752891488364,0.01805335,118090.0,118080.0,0.59399001]
[1752891488564,0.0265211,118090.0,118080.0,0.59399001]
[1752891488776,0.01805335,118090.0,118080.0,0.59399001]
[1752891489110,0.0265211,118090.0,118080.0,0.59399001]
[1752891489297,0.01805335,118090.0,118080.0,0.59399001]
[1752891489528,0.00958581,118090.0,118080.0,0.59399001]
[1752891490161,0.00111834,118090.0,118080.0,0.59399001]
[1752891490375,0.00111834,118090.0,118080.0,0.60899001]
[1752891490798,0.01805363,118090.0,118080.0,0.31399955]
[1752891491012,0.00958588,118090.0,118080.0,0.60899001]
[1752891491222,0.01805356,118090.0,118080.0,0.59399001]
[1752891491431,0.01805356,118090.0,118080.0,0.57899001]
[1752891491642,0.00958588,118090.0,118080.0,0.57899001]
[1752891491854,0.00958588,118090.0,118080.0,0.59479001]
[1752891492295,0.01805363,118090.0,118080.0,0.59479001]
[1752891492507,0.01805356,118090.0,118080.0,0.59479001]
[1752891492708,0.00958588,118090.0,118080.0,0.59479001]
[1752891492957,0.00111834,118090.0,118080.0,0.59479001]
[1752891493167,0.00958595,118090.0,118080.0,0.60979001]
[1752891493601,0.00111834,118090.0,118080.0,0.60979001]
[1752891493748,0.00958588,118090.0,118080.0,0.59479001]
[1752891493961,0.00111834,118090.0,118080.0,0.59479001]
[1752891494527,0.00111834,118090.0,118080.0,0.60979001]
[1752891505754,0.00111834,118090.0,118080.0,0.59479001]
[1752891507774,0.02652139,118090.0,118080.0,0.19217669]
[1752891507989,0.06182139,118090.0,118080.0,0.31887192]
[1752891508250,0.22271656,118090.0,118080.0,0.17137669]
[1752891508455,0.22271656,118090.0,118080.0,0.24512552]
[1752891508687,0.22271656,118090.0,118080.0,0.4095582]
[1752891508930,0.05031421,118090.0,118080.0,0.41802681]
[1752891509144,0.05031392,118090.0,118080.0,0.72146578]
[1752891509361,0.05031349,118090.0,118080.0,0.72354578]
[1752891509584,0.01174581,118090.0,118080.0,0.72354578]
[1752891509803,0.01174581,118090.0,118080.0,0.72664578]
[1752891510031,0.00958581,118090.0,118080.0,0.72664578]
[1752891510239,0.03498879,118090.0,118080.0,0.72664578]
[1752891510450,0.01805335,118090.0,118080.0,0.72664578]
[1752891511082,0.01805335,118090.0,118080.0,0.5791291]
[1752891511304,0.00111834,118090.0,118080.0,0.5956291]
[1752891511731,0.00111834,118090.0,118080.0,0.6107291]
[1752891511940,0.00111834,118090.0,118080.0,0.84371419]
[1752891512358,0.00111834,118090.0,118080.0,0.69623938]
[1752891516374,0.00111834,118090.0,118080.0,0.84371419]
[1752891516668,0.00111834,118090.0,118080.0,0.69623938]
[1752891517785,0.00111834,118090.0,118080.0,0.84371419]
[1752891518222,0.00111834,118090.0,118080.0,0.69623938]